fUST/lending_fUST_20250810
["ID","MTS","AMOUNT","RATE_DAILY","PERIOD"]
[378163223,1754755847812,-492.81380739,0.00022101,2]
[378163224,1754755847822,-460.0,0.00022101,2]
[378163225,1754755847832,-460.0,0.00022101,2]
[378163226,1754755847843,-1697.12,0.00022101,2]
[378163227,1754755847853,-527.59,0.00022101,2]
[378163228,1754755847862,-460.0,0.00022101,2]
[378163229,1754755847873,-500.0,0.00022102,2]
[378163230,1754755847883,-463.24663621,0.00022102,2]
[378163231,1754755847893,-460.0,0.00022102,2]
[378163232,1754755847902,-460.0,0.00022102,2]
[378163233,1754755847912,-1063.74,0.00022102,2]
[378163234,1754755847926,-460.0,0.00022102,2]
[378163235,1754755847936,-1479.52,0.00022102,2]
[378163236,1754755847946,-3505.32,0.00022102,2]
[378163237,1754755847954,-460.0,0.00022102,2]
[378163238,1754755847963,-850.09,0.00022102,2]
[378163239,1754755847971,-1179.42,0.00022102,2]
[378163240,1754755847981,-472.95,0.00022102,2]
[378163241,1754755847990,-542.53,0.00022124,2]
[378163242,1754755848000,-460.0,0.0002213,2]
[378163243,1754755848010,-460.0,0.0002213,2]
[378163244,1754755848020,-460.0,0.0002213,2]
[378163245,1754755848030,-460.0,0.00022131,2]
[378163246,1754755848040,-460.0,0.00022131,2]
[378163247,1754755848050,-460.0,0.00022131,2]
[378163248,1754755848060,-461.24791122,0.00022131,2]
[378163249,1754755848126,-460.0,0.00022131,2]
[378163250,1754755848136,-460.0,0.00022131,2]
[378163251,1754755848146,-460.0,0.00022131,2]
[378163252,1754755848155,-460.0,0.00022131,2]
[378163253,1754755848165,-460.0,0.00022131,2]
[378163254,1754755848175,-435.95517016,0.00022131,2]
[378163255,1754755848185,-460.0,0.00022131,2]
[378163256,1754755848195,-460.0,0.00022131,2]
[378163257,1754755848204,-460.0,0.00022131,2]
[378163258,1754755848213,-314.33880988,0.00022131,2]
[378163259,1754755848222,-460.0,0.00022131,2]
[378163260,1754755848231,-460.0,0.00022131,2]
[378163261,1754755848241,-460.0,0.00022131,2]
[378163262,1754755848250,-460.0,0.00022131,2]
[378163263,1754755848259,-460.0,0.00022131,2]
[378163264,1754755848270,-460.0,0.00022131,2]
[378163265,1754755848279,-460.0,0.00022131,2]
[378163266,1754755848289,-460.0,0.00022131,2]
[378163267,1754755848298,-460.0,0.00022131,2]
[378163268,1754755848307,-460.0,0.00022131,2]
[378163269,1754755848316,-460.0,0.00022131,2]
[378163270,1754755848327,-460.0,0.00022131,2]
[378163271,1754755848336,-557.21076336,0.00022131,2]
[378163272,1754755848345,-460.0,0.00022131,2]
[378163273,1754755848354,-554.93,0.00022131,2]
[378163274,1754755848364,-918.02,0.00022131,2]
[378163275,1754755848373,-460.0,0.00022131,2]
[378163276,1754755848382,-460.0,0.00022131,2]
[378163277,1754755848391,-460.0,0.00022131,2]
[378163278,1754755848401,-299.41,0.00022131,2]
[378163279,1754755848410,-460.0,0.00022131,2]
[378163280,1754755848419,-460.0,0.00022131,2]
[378163281,1754755848428,-460.0,0.00022131,2]
[378163282,1754755848437,-460.0,0.00022131,2]
[378163283,1754755848447,-460.0,0.00022131,2]
[378163284,1754755848458,-460.0,0.00022131,2]
[378163285,1754755848468,-460.0,0.00022131,2]
[378163286,1754755848478,-460.0,0.00022131,2]
[378163287,1754755848487,-460.0,0.00022131,2]
[378163288,1754755848497,-764.96,0.00022131,2]
[378163289,1754755848507,-460.0,0.00022131,2]
[378163290,1754755848516,-460.0,0.00022131,2]
[378163291,1754755848526,-460.0,0.00022131,2]
[378163292,1754755848537,-460.0,0.00022131,2]
[378163293,1754755848546,-460.0,0.00022131,2]
[378163294,1754755848556,-460.0,0.00022131,2]
[378163295,1754755848566,-390.67951853,0.00022131,2]
[378163296,1754755848575,-460.0,0.00022131,2]
[378163297,1754755848585,-460.0,0.00022131,2]
[378163298,1754755848594,-460.0,0.00022131,2]
[378163299,1754755848604,-460.0,0.00022131,2]
[378163300,1754755848613,-460.0,0.00022131,2]
[378163301,1754755848623,-460.0,0.00022131,2]
[378163302,1754755848632,-460.0,0.00022131,2]
[378163303,1754755848642,-460.0,0.00022131,2]
[378163304,1754755848651,-460.0,0.00022131,2]
[378163305,1754755848660,-679.77,0.00022131,2]
[378163306,1754755848670,-460.0,0.00022131,2]
[378163307,1754755848679,-460.0,0.00022131,2]
[378163308,1754755848688,-460.0,0.00022131,2]
[378163309,1754755848698,-378.0,0.00022136,2]
[378163310,1754755848708,-1000.0,0.00022221,2]
[378163311,1754755848717,-1000.0,0.00022221,2]
[378163312,1754755848726,-1000.0,0.00022221,2]
[378163313,1754755848736,-373.46689022,0.00022221,2]
[378163314,1754755848746,-460.0,0.00022221,2]
[378163315,1754755848757,-460.0,0.00022221,2]
[378163316,1754755848765,-460.0,0.00022221,2]
[378163317,1754755848774,-460.0,0.00022221,2]
[378163318,1754755848784,-628.81,0.00022221,2]
[378163319,1754755848795,-465.05589894,0.00022221,2]
[378163320,1754755848805,-460.0,0.00022221,2]
[378163321,1754755848814,-460.0,0.00022221,2]
[378163322,1754755848823,-460.0,0.00022221,2]
[378163323,1754755848833,-460.0,0.00022221,2]
[378163324,1754755848842,-460.0,0.00022221,2]
[378163325,1754755848851,-460.0,0.00022221,2]
[378163326,1754755848861,-460.0,0.00022221,2]
[378163327,1754755848870,-460.0,0.00022221,2]
[378163328,1754755848879,-585.25,0.00022221,2]
[378163329,1754755848888,-460.0,0.00022221,2]
[378163330,1754755848898,-460.0,0.00022221,2]
[378163331,1754755848907,-460.0,0.00022221,2]
[378163332,1754755848917,-597.52,0.00022221,2]
[378163333,1754755848926,-460.0,0.00022221,2]
[378163334,1754755848935,-460.0,0.00022221,2]
[378163335,1754755848945,-460.0,0.00022221,2]
[378163336,1754755848954,-460.0,0.00022221,2]
[378163337,1754755848963,-460.0,0.00022221,2]
[378163338,1754755848973,-1788.84,0.00022221,2]
[378163339,1754755848983,-460.0,0.00022221,2]
[378163340,1754755848994,-460.0,0.00022221,2]
[378163341,1754755849003,-460.0,0.00022221,2]
[378163342,1754755849012,-460.0,0.00022221,2]
[378163343,1754755849022,-466.49663132,0.00022222,2]
[378163344,1754755849031,-460.0,0.00022222,2]
[378163345,1754755849041,-460.0,0.00022222,2]
[378163346,1754755849050,-460.0,0.00022222,2]
[378163347,1754755849060,-460.0,0.00022222,2]
[378163348,1754755849069,-460.0,0.00022222,2]
[378163349,1754755849079,-460.0,0.00022222,2]
[378163350,1754755849089,-460.0,0.00022222,2]
[378163351,1754755849099,-460.0,0.00022222,2]
[378163352,1754755849108,-460.0,0.00022222,2]
[378163353,1754755849118,-460.0,0.00022222,2]
[378163354,1754755849128,-460.0,0.00022222,2]
[378163355,1754755849138,-460.0,0.00022222,2]
[378163356,1754755849147,-460.0,0.00022222,2]
[378163357,1754755849156,-460.0,0.00022222,2]
[378163358,1754755849166,-460.0,0.00022222,2]
[378163359,1754755849175,-460.0,0.00022222,2]
[378163360,1754755849185,-460.0,0.00022222,2]
[378163361,1754755849195,-460.0,0.00022222,2]
[378163362,1754755849205,-460.0,0.00022222,2]
[378163363,1754755849214,-460.0,0.00022222,2]
[378163364,1754755849224,-469.17228992,0.00022222,2]
[378163365,1754755849233,-460.0,0.00022222,2]
[378163366,1754755849243,-460.0,0.00022222,2]
[378163367,1754755849252,-460.0,0.00022222,2]
[378163368,1754755849261,-460.0,0.00022222,2]
[378163369,1754755849271,-460.0,0.00022222,2]
[378163370,1754755849280,-460.0,0.00022222,2]
[378163371,1754755849289,-990.4,0.0002223,2]
[378163372,1754755849299,-460.0,0.0002223,2]
[378163373,1754755849309,-583.12,0.0002223,2]
[378163374,1754755849319,-495.89,0.0002223,2]
[378163375,1754755849329,-460.0,0.0002223,2]
[378163376,1754755849339,-1042.63,0.0002223,2]
[378163377,1754755849348,-460.0,0.0002223,2]
[378163378,1754755849357,-595.41,0.0002223,2]
[378163379,1754755849367,-460.0,0.00022231,2]
[378163380,1754755849377,-460.0,0.00022231,2]
[378163381,1754755849386,-754.9,0.00022231,2]
[378163382,1754755849398,-460.0,0.00022231,2]
[378163383,1754755849408,-460.0,0.00022231,2]
[378163384,1754755849417,-460.0,0.00022231,2]
[378163385,1754755849427,-460.0,0.00022231,2]
[378163386,1754755849436,-460.0,0.00022231,2]
[378163387,1754755849446,-160.0,0.0002237,2]
[378163388,1754755849459,-824.03,0.00022375,2]
[378163389,1754755849470,-460.0,0.00022375,2]
[378163390,1754755849480,-2116.47,0.00022375,2]
[378163391,1754755849490,-460.0,0.00022375,2]
[378163392,1754755849499,-460.0,0.00022375,2]
[378163393,1754755849509,-460.0,0.00022375,2]
[378163394,1754755849518,-1719.64,0.00022375,2]
[378163395,1754755849529,-1421.88,0.00022375,2]
[378163396,1754755849539,-460.0,0.00022375,2]
[378163397,1754755849550,-460.0,0.00022375,2]
[378163398,1754755849560,-460.0,0.00022375,2]
[378163399,1754755849569,-460.0,0.00022375,2]
[378163400,1754755849580,-293.80265538,0.00022375,2]
[378163401,1754755849590,-460.0,0.00022375,2]
[378163402,1754755849600,-710.3,0.00022375,2]
[378163403,1754755849610,-864.02,0.00022375,2]
[378163404,1754755849621,-659.44,0.00022375,2]
[378163405,1754755849630,-460.0,0.00022375,2]
[378163406,1754755849640,-470.67233647,0.00022375,2]
[378163407,1754755849650,-460.0,0.00022375,2]
[378163408,1754755849659,-1697.12,0.00022375,2]
[378163409,1754755849669,-527.59,0.00022375,2]
[378163410,1754755849678,-460.0,0.00022375,2]
[378163411,1754755849688,-460.0,0.00022376,2]
[378163412,1754755849697,-1063.74,0.00022376,2]
[378163413,1754755849708,-460.0,0.00022376,2]
[378163414,1754755849718,-1479.52,0.00022376,2]
[378163415,1754755849728,-3505.32,0.00022376,2]
[378163416,1754755849738,-460.0,0.00022376,2]
[378163417,1754755849749,-850.09,0.00022376,2]
[378163418,1754755849760,-1179.42,0.00022376,2]
[378163419,1754755849770,-472.95,0.00022376,2]
[378163420,1754755849781,-2183.31810187,0.00022382,2]
[378163421,1754755849791,-460.0,0.00022404,2]
[378163422,1754755849803,-460.0,0.00022404,2]
[378163423,1754755849814,-460.0,0.00022405,2]
[378163424,1754755849826,-460.0,0.00022405,2]
[378163425,1754755849838,-460.0,0.00022405,2]
[378163426,1754755849848,-473.74,0.00022405,2]
[378163427,1754755849858,-460.0,0.00022405,2]
[378163428,1754755849867,-460.0,0.00022405,2]
[378163429,1754755849877,-460.0,0.00022405,2]
[378163430,1754755849887,-460.0,0.00022405,2]
[378163431,1754755849898,-460.0,0.00022405,2]
[378163432,1754755849908,-460.0,0.00022405,2]
[378163433,1754755849919,-496.69664594,0.00022405,2]
[378163434,1754755849929,-460.0,0.00022405,2]
[378163435,1754755849939,-460.0,0.00022405,2]
[378163436,1754755849949,-460.0,0.00022405,2]
[378163437,1754755849959,-460.0,0.00022405,2]
[378163438,1754755849968,-460.0,0.00022405,2]
[378163439,1754755849979,-460.0,0.00022405,2]
[378163440,1754755849989,-554.93,0.00022405,2]
[378163441,1754755849999,-918.02,0.00022405,2]
[378163442,1754755850009,-526.76337393,0.00022405,2]
[378163443,1754755850019,-460.0,0.00022405,2]
[378163444,1754755850029,-460.0,0.00022405,2]
[378163445,1754755850039,-460.0,0.00022405,2]
[378163446,1754755850048,-460.0,0.00022405,2]
[378163447,1754755850058,-460.0,0.00022405,2]
[378163448,1754755850068,-460.0,0.00022405,2]
[378163449,1754755850080,-764.96,0.00022405,2]
[378163450,1754755850090,-460.0,0.00022405,2]
[378163451,1754755850100,-460.0,0.00022405,2]
[378163452,1754755850110,-460.0,0.00022405,2]
[378163453,1754755850120,-213.2644599,0.00022405,2]
[378163454,1754755850131,-460.0,0.00022405,2]
[378163455,1754755850140,-460.0,0.00022405,2]
[378163456,1754755850151,-460.0,0.00022405,2]
[378163457,1754755850162,-460.0,0.00022405,2]
[378163458,1754755850172,-460.0,0.00022405,2]
[378163459,1754755850181,-460.0,0.00022405,2]
[378163460,1754755850191,-460.0,0.00022405,2]
[378163461,1754755850200,-460.0,0.00022405,2]
[378163462,1754755850210,-460.0,0.00022405,2]
[378163463,1754755850220,-460.0,0.00022405,2]
[378163464,1754755850230,-460.0,0.00022405,2]
[378163465,1754755850239,-679.77,0.00022405,2]
[378163466,1754755850250,-460.0,0.00022405,2]
[378163467,1754755850260,-460.0,0.00022405,2]
[378163468,1754755850270,-460.0,0.00022405,2]
[378163469,1754755850280,-2264.10087164,0.00022437,2]
[378163470,1754755850290,-1279.29288966,0.00022492,2]
[378163471,1754755850300,-460.0,0.00022495,2]
[378163472,1754755850309,-460.0,0.00022495,2]
[378163473,1754755850320,-460.0,0.00022495,2]
[378163474,1754755850331,-460.0,0.00022495,2]
[378163475,1754755850341,-628.81,0.00022495,2]
[378163476,1754755850351,-460.0,0.00022495,2]
[378163477,1754755850360,-225.82892987,0.00022495,2]
[378163478,1754755850370,-460.0,0.00022495,2]
[378163479,1754755850380,-460.0,0.00022495,2]
[378163480,1754755850389,-585.25,0.00022495,2]
[378163481,1754755850399,-460.0,0.00022495,2]
[378163482,1754755850409,-460.0,0.00022495,2]
[378163483,1754755850421,-460.0,0.00022495,2]
[378163484,1754755850431,-597.52,0.00022495,2]
[378163485,1754755850442,-460.0,0.00022495,2]
[378163486,1754755850452,-460.0,0.00022495,2]
[378163487,1754755850471,-460.0,0.00022495,2]
[378163488,1754755850491,-1788.84,0.00022495,2]
[378163489,1754755850500,-460.0,0.00022495,2]
[378163490,1754755850510,-224.37148239,0.00022495,2]
[378163491,1754755850520,-460.0,0.00022495,2]
[378163492,1754755850530,-349.14800454,0.00022496,2]
[378163493,1754755850540,-460.0,0.00022496,2]
[378163494,1754755850550,-460.0,0.00022496,2]
[378163495,1754755850560,-460.0,0.00022496,2]
[378163496,1754755850570,-460.0,0.00022496,2]
[378163497,1754755850582,-460.0,0.00022496,2]
[378163498,1754755850592,-460.0,0.00022496,2]
[378163499,1754755850602,-479.26074784,0.00022496,2]
[378163500,1754755850612,-460.0,0.00022496,2]
[378163501,1754755850622,-460.0,0.00022496,2]
[378163502,1754755850632,-538.71538902,0.00022496,2]
[378163503,1754755850642,-460.0,0.00022496,2]
[378163504,1754755850652,-367.02677627,0.00022496,2]
[378163505,1754755850662,-460.0,0.00022496,2]
[378163506,1754755850672,-460.0,0.00022496,2]
[378163507,1754755850682,-460.0,0.00022496,2]
[378163508,1754755850692,-990.4,0.00022504,2]
[378163509,1754755850702,-465.87,0.00022504,2]
[378163510,1754755850712,-583.12,0.00022504,2]
[378163511,1754755850722,-495.89,0.00022504,2]
[378163512,1754755850732,-460.0,0.00022504,2]
[378163513,1754755850742,-1042.63,0.00022504,2]
[378163514,1754755850751,-460.0,0.00022504,2]
[378163515,1754755850762,-595.41,0.00022504,2]
[378163516,1754755850771,-460.0,0.00022505,2]
[378163517,1754755850781,-754.9,0.00022505,2]
[378163518,1754755850791,-460.0,0.00022505,2]
[378163519,1754755850802,-460.0,0.00022505,2]
[378163520,1754755850814,-460.0,0.00022505,2]
[378163521,1754755850824,-1000.0,0.00022521,2]
[378163522,1754755850835,-600.0,0.00022521,2]
[378163523,1754755850844,-569.97181184,0.00022521,2]
[378163524,1754755850854,-1003.38529828,0.00022521,2]
[378163525,1754755850864,-500.0,0.00022521,2]
[378163526,1754755850874,-250.0,0.00022521,2]
[378163527,1754755850884,-1000.0,0.00022521,2]
[378163528,1754755850894,-1000.0,0.00022521,2]
[378163529,1754755850903,-1000.0,0.00022521,2]
[378163530,1754755850914,-1000.0,0.00022521,2]
[378163531,1754755850924,-500.0,0.00022521,2]
[378163532,1754755850934,-1000.0,0.00022521,2]
[378163533,1754755850944,-1000.0,0.00022521,2]
[378163534,1754755850955,-507.99762055,0.00022521,2]
[378163535,1754755850966,-1000.0,0.00022521,2]
[378163536,1754755850976,-1000.0,0.00022521,2]
[378163537,1754755850986,-312.16666667,0.00022616,2]
[378163538,1754755850996,-231.92402426,0.00022616,2]
[378163539,1754755851007,-160.0,0.00022616,2]
[378163540,1754755851017,-216.61183532,0.00022616,2]
[378163541,1754755851026,-12666.14847857,0.00022616,2]
[378163542,1754755851036,-160.0,0.00022616,2]
[378163543,1754755851045,-215.40758176,0.00022616,2]
[378163544,1754755851055,-160.0,0.00022616,2]
[378163545,1754755851065,-160.0,0.00022616,2]
[378163546,1754755851074,-461.55179734,0.00022616,2]
[378163547,1754755851084,-842.95011917,0.00022616,2]
[378163548,1754755851093,-527.77735381,0.00022616,2]
[378163549,1754755851103,-500.59736898,0.00022641,2]
[378163550,1754755851112,-500.0,0.00022641,2]
[378163551,1754755851123,-824.03,0.00022649,2]
[378163552,1754755851132,-2116.47,0.00022649,2]
[378163553,1754755851142,-460.0,0.00022649,2]
[378163554,1754755851152,-460.0,0.00022649,2]
[378163555,1754755851163,-460.0,0.00022649,2]
[378163556,1754755851174,-1719.64,0.00022649,2]
[378163557,1754755851183,-597.99491495,0.00022649,2]
[378163558,1754755851431,-823.88508505,0.00022649,2]
[378163559,1754755851442,-460.0,0.00022649,2]
[378163560,1754755851451,-460.0,0.00022649,2]
[378163561,1754755851462,-460.0,0.00022649,2]
[378163562,1754755851472,-460.0,0.00022649,2]
[378163563,1754755851481,-710.3,0.00022649,2]
[378163564,1754755851491,-864.02,0.00022649,2]
[378163565,1754755851500,-659.44,0.00022649,2]
[378163566,1754755851510,-460.0,0.00022649,2]
[378163567,1754755851520,-1697.12,0.00022649,2]
[378163568,1754755851529,-527.59,0.00022649,2]
[378163569,1754755851541,-460.0,0.0002265,2]
[378163570,1754755851551,-1063.74,0.0002265,2]
[378163571,1754755851562,-460.0,0.0002265,2]
[378163572,1754755851571,-1479.52,0.0002265,2]
[378163573,1754755851582,-3505.32,0.0002265,2]
[378163574,1754755851592,-460.0,0.0002265,2]
[378163575,1754755851601,-850.09,0.0002265,2]
[378163576,1754755851610,-1179.42,0.0002265,2]
[378163577,1754755851620,-472.95,0.0002265,2]
[378163578,1754755851630,-460.0,0.00022678,2]
[378163579,1754755851639,-460.0,0.00022678,2]
[378163580,1754755851649,-460.0,0.00022679,2]
[378163581,1754755851659,-460.0,0.00022679,2]
[378163582,1754755851668,-460.0,0.00022679,2]
[378163583,1754755851678,-537.37,0.00022679,2]
[378163584,1754755851687,-460.0,0.00022679,2]
[378163585,1754755851696,-460.0,0.00022679,2]
[378163586,1754755851706,-460.0,0.00022679,2]
[378163587,1754755851715,-460.0,0.00022679,2]
[378163588,1754755851725,-460.0,0.00022679,2]
[378163589,1754755851735,-460.0,0.00022679,2]
[378163590,1754755851745,-460.0,0.00022679,2]
[378163591,1754755851754,-460.0,0.00022679,2]
[378163592,1754755851764,-460.0,0.00022679,2]
[378163593,1754755851774,-554.93,0.00022679,2]
[378163594,1754755851784,-918.02,0.00022679,2]
[378163595,1754755851794,-460.0,0.00022679,2]
[378163596,1754755851803,-460.0,0.00022679,2]
[378163597,1754755851813,-472.42257431,0.00022679,2]
[378163598,1754755851823,-764.96,0.00022679,2]
[378163599,1754755851833,-460.0,0.00022679,2]
[378163600,1754755851843,-460.0,0.00022679,2]
[378163601,1754755851852,-460.0,0.00022679,2]
[378163602,1754755851861,-460.0,0.00022679,2]
[378163603,1754755851870,-460.0,0.00022679,2]
[378163604,1754755851880,-460.0,0.00022679,2]
[378163605,1754755851890,-460.0,0.00022679,2]
[378163606,1754755851900,-460.0,0.00022679,2]
[378163607,1754755851910,-460.0,0.00022679,2]
[378163608,1754755851920,-460.0,0.00022679,2]
[378163609,1754755851930,-460.0,0.00022679,2]
[378163610,1754755851939,-460.0,0.00022679,2]
[378163611,1754755851948,-460.0,0.00022679,2]
[378163612,1754755851958,-679.77,0.00022679,2]
[378163613,1754755851967,-460.0,0.00022679,2]
[378163614,1754755851977,-460.0,0.00022679,2]
[378163615,1754755851986,-460.0,0.00022679,2]
[378163616,1754755851995,-1500.0,0.00022768,2]
[378163617,1754755852005,-1500.0,0.00022768,2]
[378163618,1754755852015,-1000.0,0.00022768,2]
[378163619,1754755852024,-460.0,0.00022769,2]
[378163620,1754755852033,-460.0,0.00022769,2]
[378163621,1754755852044,-460.0,0.00022769,2]
[378163622,1754755852054,-371.44,0.00022769,2]
[378163623,1754755852064,-628.81,0.00022769,2]
[378163624,1754755852074,-166.12238018,0.00022769,2]
[378163625,1754755852084,-460.0,0.00022769,2]
[378163626,1754755852094,-460.0,0.00022769,2]
[378163627,1754755852103,-585.25,0.00022769,2]
[378163628,1754755852113,-460.0,0.00022769,2]
[378163629,1754755852122,-460.0,0.00022769,2]
[378163630,1754755852132,-460.0,0.00022769,2]
[378163631,1754755852141,-597.52,0.00022769,2]
[378163632,1754755852150,-460.0,0.00022769,2]
[378163633,1754755852160,-460.0,0.00022769,2]
[378163634,1754755852169,-1788.84,0.00022769,2]
[378163635,1754755852179,-460.0,0.00022769,2]
[378163636,1754755852188,-460.0,0.0002277,2]
[378163637,1754755852198,-460.0,0.0002277,2]
[378163638,1754755852207,-460.0,0.0002277,2]
[378163639,1754755852217,-460.0,0.0002277,2]
[378163640,1754755852227,-460.0,0.0002277,2]
[378163641,1754755852236,-460.0,0.0002277,2]
[378163642,1754755852245,-460.0,0.0002277,2]
[378163643,1754755852254,-460.0,0.0002277,2]
[378163644,1754755852264,-460.0,0.0002277,2]
[378163645,1754755852273,-460.0,0.0002277,2]
[378163646,1754755852282,-460.0,0.0002277,2]
[378163647,1754755852291,-151.0,0.00022771,7]
[378163648,1754755852300,-990.4,0.00022778,2]
[378163649,1754755852310,-151.0,0.00022778,7]
[378163650,1754755852320,-198.413745,0.00022778,7]
[378163651,1754755852330,-583.12,0.00022778,2]
[378163652,1754755852339,-495.89,0.00022778,2]
[378163653,1754755852349,-151.0,0.00022778,7]
[378163654,1754755852358,-1042.63,0.00022778,2]
[378163655,1754755852368,-595.41,0.00022778,2]
[378163656,1754755852377,-460.0,0.00022779,2]
[378163657,1754755852387,-754.9,0.00022779,2]
[378163658,1754755852396,-460.0,0.00022779,2]
[378163659,1754755852405,-500.0,0.000228,2]
[378163660,1754755852414,-150.0,0.00022821,2]
[378163661,1754755852424,-150.52451577,0.00022821,2]
[378163662,1754755852433,-157.0,0.00022832,2]
[378163663,1754755852443,-150.23222237,0.00022845,2]
[378163664,1754755852453,-150.0,0.0002285,2]
[378163665,1754755852466,-150.32667,0.00022898,14]
[378163666,1754755852475,-260.0,0.00022918,2]
[378163667,1754755852485,-824.03,0.00022923,2]
[378163668,1754755852494,-2116.47,0.00022923,2]
[378163669,1754755852504,-460.0,0.00022923,2]
[378163670,1754755852514,-460.0,0.00022923,2]
[378163671,1754755852523,-231.59178084,0.00022923,2]
[378163672,1754755852533,-1719.64,0.00022923,2]
[378163673,1754755852543,-1421.88,0.00022923,2]
[378163674,1754755852552,-460.0,0.00022923,2]
[378163675,1754755852561,-460.0,0.00022923,2]
[378163676,1754755852571,-460.0,0.00022923,2]
[378163677,1754755852582,-460.0,0.00022923,2]
[378163678,1754755852591,-710.3,0.00022923,2]
[378163679,1754755852601,-864.02,0.00022923,2]
[378163680,1754755852610,-659.44,0.00022923,2]
[378163681,1754755852620,-460.0,0.00022923,2]
[378163682,1754755852629,-1697.12,0.00022923,2]
[378163683,1754755852638,-527.59,0.00022923,2]
[378163684,1754755852648,-460.0,0.00022924,2]
[378163685,1754755852657,-1063.74,0.00022924,2]
[378163686,1754755852666,-460.0,0.00022924,2]
[378163687,1754755852675,-1479.52,0.00022924,2]
[378163688,1754755852685,-3505.32,0.00022924,2]
[378163689,1754755852694,-460.0,0.00022924,2]
[378163690,1754755852704,-850.09,0.00022924,2]
[378163691,1754755852713,-1179.42,0.00022924,2]
[378163692,1754755852723,-472.95,0.00022924,2]
[378163693,1754755852732,-153.0,0.00022941,2]
[378163694,1754755852741,-153.0,0.00022941,2]
[378163695,1754755852751,-153.0,0.00022941,2]
[378163696,1754755852760,-153.0,0.00022941,2]
[378163697,1754755852769,-153.0,0.00022941,2]
[378163698,1754755852779,-153.0,0.00022941,2]
[378163699,1754755852788,-153.0,0.00022941,2]
[378163700,1754755852797,-153.0,0.00022941,2]
[378163701,1754755852807,-153.0,0.00022941,2]
[378163702,1754755852816,-153.0,0.00022941,2]
[378163703,1754755852826,-153.0,0.00022941,2]
[378163704,1754755852836,-153.0,0.00022941,2]
[378163705,1754755852845,-153.0,0.00022941,2]
[378163706,1754755852854,-153.0,0.00022941,2]
[378163707,1754755852864,-153.0,0.00022941,2]
[378163708,1754755852873,-153.0,0.00022941,2]
[378163709,1754755852883,-153.0,0.00022941,2]
[378163710,1754755852892,-153.0,0.00022941,2]
[378163711,1754755852901,-153.0,0.00022941,2]
[378163712,1754755852911,-153.0,0.00022941,2]
[378163713,1754755852920,-153.0,0.00022941,2]
[378163714,1754755852930,-153.0,0.00022944,2]
[378163715,1754755852940,-153.0,0.00022944,2]
[378163716,1754755852949,-153.0,0.00022944,2]
[378163717,1754755852958,-153.0,0.00022944,2]
[378163718,1754755852968,-153.0,0.00022944,2]
[378163719,1754755852977,-153.0,0.00022944,2]
[378163720,1754755852986,-153.0,0.00022944,2]
[378163721,1754755852996,-153.0,0.00022944,2]
[378163722,1754755853005,-153.0,0.00022944,2]